bitfinex-derivatives/quotes_BTCF0:USTF0_20251009
["timestamp","ask_amount","ask_price","bid_price","bid_amount"]
[1760016971671,0.95864959,123200.0,123190.0,0.02389]
[1760016971878,0.95864959,123200.0,123190.0,0.03783]
[1760016972181,0.0811429,123190.0,123180.0,0.03783]
[1760016972479,0.4419429,123190.0,123180.0,0.79467]
[1760016972779,0.4645429,123190.0,123180.0,0.79467]
[1760016972979,0.4419429,123190.0,123180.0,0.79459]
[1760016973176,0.4419429,123190.0,123180.0,0.79447]
[1760016973371,0.4419429,123190.0,123180.0,0.79443]
[1760016973577,0.4419429,123190.0,123180.0,0.03783]
[1760016973772,0.4419429,123190.0,123180.0,0.79435]
[1760016974172,0.4419429,123190.0,123180.0,0.03783]
[1760016974373,0.4419429,123190.0,123180.0,0.79419]
[1760016974574,0.4419429,123190.0,123180.0,0.8753395]
[1760016974980,0.4429429,123190.0,123180.0,0.8753395]
[1760016975177,0.3618,123190.0,123180.0,0.1189795]
[1760016975378,0.3618,123190.0,123180.0,0.8750995]
[1760016975578,0.3618,123190.0,123180.0,0.81308969]
[1760016975779,0.3618,123190.0,123180.0,1.56924969]
[1760016976278,0.3618,123190.0,123180.0,0.81308969]
[1760016976582,0.002,123190.0,123180.0,1.56916969]
[1760016976783,0.002,123190.0,123180.0,1.92996969]
[1760016977172,0.002,123190.0,123180.0,1.17388969]
[1760016977478,0.001,123190.0,123180.0,3.59776969]
[1760016977686,0.4419429,123190.0,123180.0,2.5487795]
[1760016977982,0.4419429,123190.0,123180.0,3.3045395]
[1760016978275,0.75865309,123190.0,123180.0,0.03983]
[1760016978476,1.15865309,123190.0,123180.0,0.004]
[1760016978673,0.4645429,123190.0,123180.0,0.04183]
[1760016978875,0.4645429,123190.0,123180.0,0.78931]
[1760016979082,0.3155429,123190.0,123180.0,0.8694595]
[1760016979679,0.2929429,123190.0,123180.0,0.8694595]
[1760016979880,0.2929429,123190.0,123180.0,0.8767795]
[1760016980080,0.2939429,123190.0,123180.0,0.1199795]
[1760016980280,0.2949429,123190.0,123180.0,0.8757795]
[1760016980578,0.2138,123190.0,123180.0,1.16980969]
[1760016980785,0.2138,123190.0,123180.0,1.16976969]
[1760016980983,0.002,123190.0,123180.0,1.16976969]
[1760016981185,0.002,123190.0,123180.0,0.41308969]
[1760016981477,0.002,123190.0,123180.0,0.81308969]
[1760016981785,0.002,123190.0,123180.0,1.93040969]
[1760016982377,0.3608,123210.0,123200.0,0.0950763]
[1760016982585,0.3608,123210.0,123200.0,1.16947649]
[1760016982784,0.4419254,123220.0,123210.0,0.1189597]
[1760016983184,0.4645254,123220.0,123210.0,0.1189597]
[1760016983388,0.4645254,123220.0,123210.0,0.8753197]
[1760016983785,0.4645254,123220.0,123210.0,0.79411]
[1760016983989,0.4645254,123220.0,123210.0,0.79391]
[1760016984187,0.4645254,123220.0,123210.0,0.8750397]
[1760016984188,0.3834,123220.0,123210.0,0.8750397]
[1760016984390,0.4645231,123220.0,123210.0,0.8750397]
[1760016984587,0.4645231,123220.0,123210.0,0.1189597]
[1760016984788,0.4645231,123220.0,123210.0,0.8749597]
[1760016985086,0.1037231,123220.0,123210.0,0.85737096]
[1760016985286,0.4645231,123220.0,123210.0,0.85721096]
[1760016985491,0.4665231,123220.0,123210.0,0.85721096]
[1760016985790,0.4675231,123220.0,123210.0,0.85721096]
[1760016986186,0.4675231,123220.0,123210.0,0.10137096]
[1760016986391,0.4449231,123220.0,123210.0,0.93810066]
[1760016986584,0.4449231,123220.0,123210.0,0.18250066]
[1760016986882,0.4449231,123220.0,123210.0,0.93802066]
[1760016987285,0.4449231,123220.0,123210.0,0.93794066]
[1760016987491,0.4449231,123220.0,123210.0,0.93782066]
[1760016987790,0.4675231,123220.0,123210.0,0.10137096]
[1760016987988,0.4675231,123220.0,123210.0,0.85669096]
[1760016988392,0.4675231,123220.0,123210.0,0.85649096]
[1760016988993,0.4675231,123220.0,123210.0,0.18250066]
[1760016989190,0.3864,123220.0,123210.0,0.93750066]
[1760016989390,0.003,123220.0,123210.0,0.47661085]
[1760016989790,0.0841231,123220.0,123210.0,0.47661085]
[1760016989996,0.0841231,123220.0,123210.0,1.23149085]
[1760016990191,0.003,123220.0,123210.0,1.23149085]
[1760016990496,0.0841231,123220.0,123210.0,1.23149085]
[1760016990889,0.0841231,123220.0,123210.0,1.99221085]
[1760016990890,0.003,123220.0,123210.0,1.99221085]
[1760016991095,0.4645068,123250.0,123240.0,0.03783]
[1760016991296,0.7545068,123250.0,123240.0,0.87358]
[1760016991599,0.7545068,123250.0,123240.0,0.11894]
[1760016991897,0.7545068,123250.0,123240.0,0.79243]
[1760016992393,0.7595068,123250.0,123240.0,0.11894]
[1760016992595,0.7595068,123250.0,123240.0,0.87342]
[1760016992786,0.7595068,123250.0,123240.0,0.79227]
[1760016992991,0.7595068,123250.0,123240.0,0.11894]
[1760016993200,0.7369068,123250.0,123240.0,0.11894]
[1760016993394,0.4469068,123250.0,123240.0,0.87326]
[1760016993590,0.5469068,123250.0,123240.0,0.87326]
[1760016994091,0.1861068,123250.0,123240.0,1.16737019]
[1760016994395,0.1861034,123250.0,123240.0,1.16737019]
[1760016994594,0.105,123250.0,123240.0,0.41305019]
[1760016994793,0.005,123250.0,123240.0,1.56705019]
[1760016995095,0.005,123250.0,123240.0,3.19997019]
[1760016995290,0.3608,123280.0,123270.0,0.1189202]
[1760016995497,0.4708,123280.0,123270.0,1.16711039]
[1760016995692,0.5518837,123280.0,123270.0,0.33194019]
[1760016995905,0.5518837,123280.0,123270.0,1.16707039]
[1760016996105,0.5518837,123280.0,123270.0,0.41303039]
[1760016996292,0.0810902,123270.0,123260.0,0.01394]
[1760016996493,0.1036968,123260.0,123250.0,0.03783]
[1760016996691,0.4644968,123260.0,123250.0,0.56884778]
[1760016996892,0.1036968,123260.0,123250.0,0.10144778]
[1760016997092,0.1036968,123260.0,123250.0,0.85552778]
[1760016997501,0.4644968,123260.0,123250.0,0.10144778]
[1760016997701,0.4644968,123260.0,123250.0,0.85536778]
[1760016998895,0.4654968,123260.0,123250.0,0.85536778]
[1760016999799,0.4654968,123260.0,123250.0,0.93647118]
[1760017000004,0.4669768,123260.0,123250.0,0.10144778]
[1760017000202,0.4669768,123260.0,123250.0,0.85480778]
[1760017000907,0.4669768,123260.0,123250.0,0.10144778]
[1760017001097,0.4669768,123260.0,123250.0,0.85476778]
[1760017001901,0.001,123260.0,123250.0,0.47666137]
[1760017002204,0.0820968,123260.0,123250.0,1.22966137]
[1760017002498,0.001,123260.0,123250.0,1.99042137]
[1760017002700,0.001,123260.0,123250.0,1.59042137]
[1760017002906,0.0820968,123260.0,123250.0,2.86310137]
[1760017003104,0.0820968,123260.0,123250.0,3.61630137]
[1760017003502,0.001,123260.0,123250.0,2.86310137]
[1760017003705,0.001,123260.0,123250.0,3.61622137]
[1760017004001,0.001,123260.0,123250.0,3.61614137]
[1760017004198,0.001,123260.0,123250.0,3.23103663]
[1760017004399,0.001,123260.0,123250.0,3.98395663]
[1760017005005,0.4418829,123290.0,123280.0,0.1188137]
[1760017005206,0.7218829,123290.0,123280.0,0.8716137]
[1760017005506,0.28,123290.0,123280.0,1.2323737]
[1760017005703,0.3608,123300.0,123290.0,0.1188071]
[1760017005902,0.4418623,123320.0,123310.0,0.03773]
[1760017006105,0.3010623,123320.0,123310.0,0.79109]
[1760017006306,0.22,123320.0,123310.0,0.8721539]
[1760017006601,0.0810532,123330.0,123320.0,0.1187874]
[1760017006806,0.4649442,123340.0,123330.0,0.03773]
[1760017007003,0.1041508,123330.0,123320.0,0.10411261]
[1760017007307,0.0810639,123310.0,123300.0,2.04711957]
[1760017007497,0.4418639,123310.0,123300.0,2.11341567]
[1760017007808,0.4418639,123310.0,123300.0,2.94840617]
[1760017007994,0.0810605,123320.0,123310.0,0.1187939]
[1760017008195,0.0810574,123320.0,123310.0,0.8726739]
[1760017008399,0.0810574,123320.0,123310.0,0.79157]
[1760017008806,0.0820574,123320.0,123310.0,0.79157]
[1760017009006,0.0820574,123320.0,123310.0,0.03773]
[1760017009208,0.4659574,123320.0,123310.0,0.79153]
[1760017009803,0.3618,123320.0,123310.0,0.1187939]
[1760017010104,0.3618,123320.0,123310.0,0.8724739]
[1760017010305,0.3618,123320.0,123310.0,0.8724339]
[1760017010506,0.3618,123320.0,123310.0,0.8723939]
[1760017010812,0.001,123320.0,123310.0,1.89519935]
[1760017011110,0.001,123320.0,123310.0,1.89511935]
[1760017011306,0.3628,123340.0,123330.0,0.1187808]
[1760017011500,0.6438442,123340.0,123330.0,0.8722608]
[1760017012210,0.6418442,123340.0,123330.0,0.8722608]
[1760017012510,0.6428442,123340.0,123330.0,0.79121]
[1760017012907,0.4428442,123340.0,123330.0,0.03773]
[1760017013107,0.4679442,123340.0,123330.0,0.03773]
[1760017013510,0.8805342,123340.0,123330.0,0.77705]
[1760017014503,0.0810508,123330.0,123320.0,0.01368]
[1760017014707,0.0810574,123320.0,123310.0,0.01368]
[1760017014906,0.4649574,123320.0,123310.0,0.63781]
[1760017015609,0.4649574,123320.0,123310.0,0.7188739]
[1760017016006,0.3628,123330.0,123320.0,0.1187874]
[1760017016210,0.003,123330.0,123320.0,1.49423285]
[1760017016606,0.001,123330.0,123320.0,1.49423285]
[1760017016802,0.4418467,123340.0,123330.0,0.03773]
[1760017017006,0.5449467,123340.0,123330.0,0.02405]
[1760017017208,0.1041508,123330.0,123320.0,0.03773]
[1760017017507,0.4649508,123330.0,123320.0,0.03773]
[1760017017911,0.4649508,123330.0,123320.0,0.79005]
[1760017018111,0.4649508,123330.0,123320.0,0.8711074]
[1760017018512,0.003,123330.0,123320.0,0.8710674]
[1760017018812,0.003,123330.0,123320.0,0.8709474]
[1760017019014,0.003,123330.0,123320.0,1.14167285]
[1760017019211,0.003,123330.0,123320.0,1.89395285]
[1760017020511,0.3608,123370.0,123350.0,0.1187676]
[1760017020812,0.7218272,123370.0,123360.0,0.8708011]
[1760017021011,0.7449272,123370.0,123360.0,0.03773]
[1760017021209,1.41460265,123370.0,123360.0,0.06469525]
[1760017021408,0.1041376,123350.0,123340.0,0.03773]
[1760017021610,0.8649376,123350.0,123340.0,0.36333]
[1760017022111,0.4418376,123350.0,123340.0,0.1187742]
[1760017022309,0.4418347,123360.0,123350.0,0.1187676]
[1760017022507,0.3608,123360.0,123350.0,0.8707276]
[1760017022809,0.4418311,123360.0,123350.0,0.8706876]
[1760017023212,0.3618,123370.0,123360.0,0.1187611]
[1760017023213,0.3608,123370.0,123360.0,0.1187611]
[1760017023410,0.7218245,123370.0,123360.0,0.1187611]
[1760017023611,0.7449245,123370.0,123360.0,0.8705611]
[1760017024010,0.7449245,123370.0,123360.0,0.10350124]
[1760017024216,0.7449245,123370.0,123360.0,0.18453234]
[1760017024413,0.3841245,123370.0,123360.0,0.93629234]
[1760017024709,0.7449245,123370.0,123360.0,0.93629234]
[1760017024919,0.6639,123370.0,123360.0,0.93629234]
[1760017025113,0.6639,123370.0,123360.0,0.18453234]
[1760017025114,0.28,123370.0,123360.0,0.18453234]
[1760017025313,0.7459245,123370.0,123360.0,0.10350124]
[1760017025513,0.7459245,123370.0,123360.0,0.85502124]
[1760017025916,0.7459245,123370.0,123360.0,0.93605234]
[1760017026819,0.7459245,123370.0,123360.0,0.18453234]
[1760017027119,0.3851245,123370.0,123360.0,0.93601234]
[1760017028018,0.282,123370.0,123360.0,0.93577234]
[1760017028217,0.282,123370.0,123360.0,1.19785779]
[1760017028420,0.102,123370.0,123360.0,0.93549234]
[1760017028720,0.002,123370.0,123360.0,1.55837779]
[1760017029016,0.002,123370.0,123360.0,1.95829779]
[1760017029215,0.002,123370.0,123360.0,1.95825779]
[1760017029520,0.002,123370.0,123360.0,1.20741779]
[1760017029814,0.4653845,123370.0,123360.0,0.10350124]
[1760017030016,0.4653845,123370.0,123360.0,0.85462124]
[1760017030214,0.4653845,123370.0,123360.0,0.93565234]
[1760017030416,0.002,123370.0,123360.0,0.93565234]
[1760017030615,0.0830245,123370.0,123360.0,1.19773779]
[1760017030816,0.0830245,123370.0,123360.0,0.18453234]
[1760017031017,0.4653845,123370.0,123360.0,0.10350124]
[1760017031521,1.14005995,123370.0,123360.0,0.06577124]
[1760017031720,0.1025976,123350.0,123340.0,0.03693]
[1760017031918,0.1025976,123350.0,123320.0,0.03752]
[1760017031919,0.1026108,123330.0,123320.0,0.03752]
[1760017032216,0.4760008,123330.0,123320.0,0.71972]
[1760017032420,0.4634108,123330.0,123320.0,0.02325]
[1760017032617,0.4634108,123330.0,123320.0,0.85267452]
[1760017032810,0.4634108,123330.0,123320.0,0.10135452]
[1760017033117,1.2368008,123330.0,123320.0,0.06383452]
[1760017033418,0.1149174,123320.0,123310.0,0.00010404]
[1760017033622,1.13780285,123320.0,123310.0,4e-08]
[1760017033916,1.44780285,123320.0,123310.0,4e-08]
[1760017034619,1.44786765,123320.0,123310.0,4e-08]
[1760017034820,2.19954765,123320.0,123310.0,4e-08]
[1760017035022,0.1026437,123280.0,123270.0,0.04591646]
[1760017035214,0.4634437,123280.0,123270.0,0.07811646]
[1760017035611,0.4634437,123280.0,123270.0,0.78320646]
[1760017035812,0.1026568,123260.0,123250.0,0.03752]
[1760017036023,0.46351577,123260.0,123250.0,0.03752]
[1760017036216,0.46351577,123260.0,123250.0,0.75097]
[1760017036412,0.46351577,123260.0,123250.0,0.08753588]
[1760017036724,0.87590577,123260.0,123250.0,0.06428588]
[1760017036918,0.02156,123250.0,123230.0,2.03831]
[1760017037119,0.44191,123240.0,123230.0,2.03831]
[1760017037319,0.44191,123240.0,123230.0,2.78979]
[1760017037524,0.44191,123240.0,123230.0,2.8709066]
[1760017038120,0.1026831,123220.0,123210.0,0.03762497]
[1760017038322,0.47115925,123220.0,123210.0,0.00010497]
[1760017038623,0.7332447,123220.0,123210.0,0.00010497]
[1760017038921,1.1332447,123220.0,123210.0,0.00010497]
[1760017039622,1.1332447,123220.0,123210.0,0.00310497]
[1760017039823,0.47115925,123220.0,123210.0,0.00310497]
[1760017040024,0.7256547,123220.0,123210.0,0.10748467]
[1760017040223,0.38244615,123220.0,123210.0,0.12175467]
[1760017040825,0.46356925,123220.0,123210.0,0.04062497]
[1760017041025,0.46356925,123220.0,123210.0,0.79590497]
[1760017041327,0.38244615,123220.0,123210.0,0.12175467]
[1760017041527,0.46356925,123220.0,123210.0,0.12175467]
[1760017041721,0.38244615,123220.0,123210.0,0.11875467]
[1760017041921,0.38244615,123220.0,123210.0,0.87391467]
[1760017043025,0.38244615,123220.0,123210.0,0.11875467]
[1760017043328,1.1331147,123220.0,123210.0,0.75498497]
[1760017044230,0.87102925,123220.0,123210.0,0.00010497]
[1760017044424,1.1256547,123220.0,123210.0,0.02315497]
[1760017044621,0.86356925,123220.0,123210.0,0.02415497]
[1760017044823,0.87102925,123220.0,123210.0,0.00110497]
[1760017045023,1.1331147,123220.0,123210.0,0.00110497]
[1760017045422,1.1331147,123220.0,123210.0,0.00010497]
[1760017046526,1.1331147,123220.0,123180.0,0.04546595]
[1760017046527,0.1038029,123190.0,123180.0,0.04546595]
[1760017046727,0.1038095,123180.0,123170.0,0.03717]
[1760017047029,0.4646095,123180.0,123170.0,0.79169]
[1760017047634,0.38354645,123180.0,123170.0,0.1183261]
[1760017047829,0.46469595,123180.0,123170.0,0.1263741]
[1760017048022,0.46469595,123180.0,123170.0,0.9462367]
[1760017048235,0.7342414,123180.0,123170.0,0.0655026]
[1760017048532,0.7342414,123180.0,123170.0,0.003]
[1760017048732,0.47215595,123180.0,123170.0,0.003]
[1760017048935,0.47215595,123180.0,123170.0,0.005]
[1760017050229,0.87215595,123180.0,123170.0,0.005]
[1760017050933,1.1342414,123180.0,123170.0,0.005]
[1760017051535,1.1342414,123180.0,123170.0,0.003]
[1760017051833,0.1161161,123170.0,123160.0,0.06494963]
[1760017052036,0.0811627,123160.0,123150.0,2.874609]
[1760017052335,0.4419627,123160.0,123150.0,2.874609]
[1760017052736,0.3608,123160.0,123150.0,2.874609]
[1760017052937,0.4646227,123160.0,123150.0,0.79101]
[1760017053339,0.4646227,123160.0,123150.0,0.8720992]
[1760017054537,0.4646227,123160.0,123150.0,0.8730992]
[1760017054734,0.4646227,123160.0,123150.0,0.1193392]
[1760017054934,0.4646227,123160.0,123150.0,0.8728992]
[1760017055134,0.4646227,123160.0,123150.0,0.79173]
[1760017055335,0.4772127,123160.0,123150.0,0.06685742]
[1760017055637,1.13929815,123160.0,123150.0,0.002]
[1760017055840,0.1112958,123140.0,123130.0,8.037e-05]
[1760017056138,0.73423861,123140.0,123130.0,8.037e-05]
[1760017056533,0.1038556,123110.0,123100.0,0.03717]
[1760017056733,0.4646556,123110.0,123100.0,0.61333]
[1760017056934,0.02266,123110.0,123100.0,0.6945322]
[1760017057139,0.02266,123120.0,123110.0,0.1183656]
[1760017057335,0.36085736,123140.0,123130.0,0.0811824]
[1760017057539,5.736e-05,123140.0,123130.0,0.1183524]
[1760017057739,5.736e-05,123140.0,123130.0,0.8791524]
[1760017057939,5.736e-05,123140.0,123130.0,1.6353524]
[1760017058440,0.38346,123170.0,123160.0,0.1183327]
[1760017058641,0.67346,123170.0,123160.0,0.7975327]
[1760017058840,0.7546161,123170.0,123160.0,0.7975327]
[1760017059033,0.6508,123170.0,123160.0,0.1183327]
[1760017059242,0.3608,123170.0,123160.0,0.5183327]
[1760017059540,9.552e-05,123170.0,123160.0,0.5183327]
[1760017059743,9.552e-05,123170.0,123160.0,0.58250333]
[1760017060038,9.552e-05,123170.0,123160.0,1.20538878]
[1760017060238,0.3608,123190.0,123180.0,0.1166095]
[1760017060440,0.3,123190.0,123180.0,0.8706895]
[1760017060736,0.2311429,123190.0,123180.0,1.2314895]
[1760017060938,0.2311429,123190.0,123180.0,0.8706495]
[1760017061239,0.2312366,123190.0,123180.0,0.8706495]
[1760017061435,0.1500937,123190.0,123180.0,0.8706495]
[1760017061635,9.37e-05,123190.0,123180.0,1.89337495]
[1760017061832,9.37e-05,123190.0,123180.0,1.89341495]
[1760017062439,9.37e-05,123190.0,123180.0,1.49341495]
[1760017062636,9.37e-05,123190.0,123180.0,0.73949495]
[1760017062938,0.0812366,123190.0,123180.0,0.39626]
[1760017063138,0.1044166,123190.0,123180.0,0.03546]
[1760017063344,0.4652166,123190.0,123180.0,0.78914]
[1760017063544,0.4420366,123190.0,123180.0,0.03546]
[1760017063838,9.37e-05,123190.0,123180.0,0.7891]
[1760017064045,0.0010937,123190.0,123180.0,1.6310495]
[1760017064339,0.0010937,123190.0,123180.0,1.92459405]
[1760017064740,0.0010937,123190.0,123180.0,1.17091405]
[1760017064940,0.0010937,123190.0,123180.0,1.92451405]
[1760017065141,0.0010937,123190.0,123180.0,1.17091405]
[1760017065343,0.0010937,123190.0,123180.0,1.17890621]
[1760017065543,0.0010937,123190.0,123180.0,1.93238621]
[1760017065744,0.0010937,123190.0,123180.0,1.93230621]
[1760017065945,0.0010937,123190.0,123180.0,1.17890621]
[1760017066245,0.0010937,123190.0,123180.0,1.93226621]
[1760017066845,0.0010937,123190.0,123180.0,1.93218621]
[1760017067048,0.3608,123220.0,123210.0,0.1175097]
[1760017067049,0.4419264,123220.0,123210.0,0.1175097]
[1760017067242,0.7219264,123220.0,123210.0,0.8709497]
[1760017067442,0.7434664,123220.0,123210.0,0.03638]
[1760017067644,0.3611264,123220.0,123210.0,0.1175097]
[1760017067838,0.28,123220.0,123210.0,0.41101425]
[1760017068038,0.3608,123240.0,123210.0,0.41101425]
[1760017068039,0.08111,123240.0,123230.0,0.1174966]
[1760017068342,0.3626928,123240.0,123230.0,0.1174966]
[1760017068536,0.3411528,123240.0,123230.0,1.2315766]
[1760017068737,0.3411528,123240.0,123230.0,1.52508115]
[1760017068938,0.2600428,123240.0,123230.0,1.2315766]
[1760017069242,0.2600428,123240.0,123230.0,0.39718]
[1760017069243,0.3626928,123240.0,123230.0,0.39718]
[1760017069442,0.3626928,123240.0,123230.0,0.03638]
[1760017069443,0.7234928,123240.0,123230.0,0.03638]
[1760017069748,0.7234928,123240.0,123230.0,0.85562505]
[1760017069938,0.3626928,123240.0,123230.0,0.03638]
[1760017070139,0.0811166,123230.0,123220.0,0.39718]
[1760017070344,0.1026631,123220.0,123210.0,0.03738]
[1760017070542,0.4634631,123220.0,123210.0,0.79034]
[1760017070744,0.0811231,123220.0,123210.0,0.1185097]
[1760017070944,0.0811231,123220.0,123210.0,0.8714697]
[1760017071346,0.0811231,123220.0,123210.0,0.8704697]
[1760017071940,0.4419226,123230.0,123210.0,0.81301425]
[1760017072140,0.4419226,123230.0,123220.0,0.1175031]
[1760017072349,0.441953,123240.0,123230.0,0.1174966]
[1760017072546,0.601953,123240.0,123230.0,0.1174966]
[1760017072738,0.1600428,123240.0,123230.0,0.1174966]
[1760017072943,0.1600428,123240.0,123230.0,0.41100115]
[1760017073138,0.1600428,123240.0,123230.0,0.4782966]
[1760017073343,4.28e-05,123240.0,123230.0,1.2314966]
[1760017073546,4.28e-05,123240.0,123230.0,1.92500115]
[1760017073746,0.4418987,123260.0,123250.0,0.1174834]
[1760017073947,0.4418987,123260.0,123250.0,0.8705634]
[1760017073948,0.7618987,123260.0,123250.0,0.8705634]
[1760017074244,0.32,123260.0,123250.0,1.16406795]
[1760017074444,0.48389222,123270.0,123260.0,0.03638]
[1760017074648,0.76389222,123270.0,123260.0,0.1174768]
[1760017074851,0.78543222,123270.0,123260.0,0.8704768]
[1760017075050,0.78543222,123270.0,123260.0,0.03638]
[1760017075445,0.78543222,123270.0,123260.0,0.78938]
[1760017075749,0.78543222,123270.0,123260.0,0.1001937]
[1760017076445,0.78543222,123270.0,123260.0,0.1812905]
[1760017076751,0.78543222,123270.0,123260.0,0.8529137]
[1760017076952,0.78543222,123270.0,123260.0,0.8528737]
[1760017077150,0.42463222,123270.0,123260.0,0.1812905]
[1760017077352,0.78543222,123270.0,123260.0,0.9338505]
[1760017077551,0.78543222,123270.0,123260.0,0.8527537]
[1760017078047,0.78543222,123270.0,123260.0,0.1812905]
[1760017078350,0.78543222,123270.0,123260.0,0.9336505]
[1760017078546,0.78543222,123270.0,123260.0,0.1001937]
[1760017078743,0.78543222,123270.0,123260.0,0.8524337]
[1760017079045,0.78543222,123270.0,123260.0,0.1001937]
[1760017079550,0.0810968,123260.0,123250.0,0.01407]
[1760017079851,0.75694135,123260.0,123250.0,0.78846]
[1760017080448,1.15694135,123260.0,123240.0,0.01407]
[1760017080652,0.4418968,123260.0,123250.0,0.41098795]
[1760017080851,0.48389482,123270.0,123260.0,0.1174768]
[1760017081055,0.6408,123270.0,123260.0,0.47504154]
[1760017081251,0.6408,123270.0,123260.0,0.10044019]
[1760017081252,0.7434302,123270.0,123260.0,0.10044019]
[1760017081452,0.7434302,123270.0,123260.0,0.85236019]
[1760017081649,0.7434302,123270.0,123260.0,0.85232019]
[1760017081845,0.7218902,123270.0,123260.0,0.18153699]
[1760017082053,0.7434302,123270.0,123260.0,0.18153699]
[1760017082350,1.44952475,123270.0,123260.0,0.06506019]
[1760017082552,1.44952475,123270.0,123240.0,2.03979]
[1760017082851,0.10265,123240.0,123230.0,0.03838]
[1760017083149,0.46345,123240.0,123230.0,0.02431]
[1760017083451,1.15695455,123240.0,123230.0,0.36847]
[1760017083650,0.46345,123240.0,123230.0,0.1194966]
[1760017083951,0.46345,123240.0,123230.0,0.02431]
[1760017084150,1.16861455,123240.0,123230.0,0.002]
[1760017084550,1.16861455,123240.0,123230.0,1e-07]
[1760017085654,1.16961455,123240.0,123230.0,1e-07]
[1760017085955,0.1026631,123220.0,123210.0,0.10151744]
[1760017086146,0.75696765,123220.0,123210.0,0.10151744]
[1760017086351,1.12522765,123220.0,123210.0,0.06513744]
[1760017086549,0.1026697,123210.0,123200.0,0.1175161]
[1760017086753,0.3608,123210.0,123200.0,0.1175161]
[1760017086953,0.4419206,123230.0,123210.0,0.1175097]
[1760017087152,0.4634606,123230.0,123220.0,0.78822]
[1760017087653,0.4634606,123230.0,123220.0,0.78826]
[1760017087954,0.4634606,123230.0,123220.0,0.78818]
[1760017088151,0.75696515,123230.0,123220.0,0.78818]
[1760017088353,0.75696515,123230.0,123220.0,0.03638]
[1760017088548,0.75696515,123230.0,123220.0,0.8691431]
[1760017088753,0.4634606,123230.0,123220.0,0.8691431]
[1760017088955,0.4634606,123230.0,123220.0,0.03638]
[1760017089153,0.4634606,123230.0,123220.0,0.78802]
[1760017089350,0.4644606,123230.0,123220.0,0.8691431]
[1760017089747,0.4644606,123230.0,123220.0,0.1175031]
[1760017090053,0.4419166,123230.0,123220.0,0.8689831]
[1760017090356,0.4429166,123230.0,123220.0,0.8689831]
[1760017090553,0.001,123230.0,123220.0,1.17180765]
[1760017090858,0.001,123230.0,123220.0,1.92320765]
[1760017091051,0.4646416,123240.0,123230.0,0.03614]
[1760017091258,0.4646416,123240.0,123230.0,0.78742]
[1760017091962,0.46464,123240.0,123230.0,0.8685366]
[1760017092150,0.38353,123240.0,123230.0,0.8685366]
[1760017092356,0.10384,123240.0,123230.0,0.8684166]
[1760017093256,0.46464,123240.0,123230.0,0.03614]
[1760017093455,0.1038466,123230.0,123220.0,0.03825]
[1760017093756,0.1038531,123220.0,123210.0,0.10164172]
[1760017094263,0.80994765,123220.0,123210.0,0.06539172]
[1760017094460,0.1038663,123200.0,123190.0,0.1582413]
[1760017094652,0.75817085,123200.0,123190.0,0.8954813]
[1760017094959,0.1038729,123190.0,123180.0,0.0443017]
[1760017095161,0.1038729,123190.0,123180.0,0.78742252]
[1760017095462,0.1038729,123190.0,123180.0,0.86857202]
[1760017095961,0.0811404,123200.0,123190.0,0.1172829]
[1760017096362,0.4646704,123200.0,123190.0,0.7871]
[1760017096855,0.4646663,123200.0,123190.0,0.8682029]
[1760017097061,0.4419363,123200.0,123190.0,0.8702029]
[1760017097663,0.4419363,123200.0,123190.0,0.79106]
[1760017097854,0.4646663,123200.0,123190.0,0.02618]
[1760017098055,0.75817085,123200.0,123190.0,0.004]
[1760017098259,0.77028085,123200.0,123190.0,0.82039369]
[1760017098463,0.77028085,123200.0,123190.0,0.75472]
[1760017098964,0.75817085,123200.0,123190.0,0.75472]
[1760017099364,0.4646663,123200.0,123190.0,0.04014]
[1760017099766,0.4646663,123200.0,123190.0,0.02618]
[1760017100163,0.76946085,123200.0,123190.0,0.7544]
[1760017100962,1.16946085,123200.0,123190.0,0.004]
[1760017101368,1.16946085,123200.0,123190.0,0.41724]
[1760017101568,1.16946085,123200.0,123190.0,0.004]
[1760017101967,1.16946085,123200.0,123190.0,0.0703553]
[1760017102166,1.16946085,123200.0,123190.0,0.4404]
[1760017102367,1.16946085,123200.0,123190.0,0.75416]
[1760017102563,1.16946085,123200.0,123190.0,0.004]
[1760017102958,0.1113329,123190.0,123180.0,8.252e-05]
[1760017103267,0.76563745,123190.0,123180.0,8.252e-05]
[1760017103461,1.16563745,123190.0,123180.0,8.252e-05]
[1760017104464,0.76563745,123190.0,123180.0,8.252e-05]
[1760017105861,1.16563745,123190.0,123180.0,8.252e-05]
[1760017108975,1.16563745,123190.0,123180.0,0.02226252]
[1760017109669,0.4721329,123190.0,123180.0,0.10341202]
[1760017109973,0.4646708,123200.0,123190.0,0.1172829]
[1760017110165,0.5346708,123200.0,123190.0,0.1172829]
[1760017110770,0.3608,123200.0,123190.0,1.2672029]
[1760017110966,0.4419363,123200.0,123190.0,1.2672029]
[1760017111170,0.001,123200.0,123190.0,1.56070745]
[1760017111374,0.001,123200.0,123190.0,1.17158745]
[1760017111676,0.001,123200.0,123190.0,2.06578875]
[1760017111871,0.3608,123220.0,123210.0,0.0950897]
[1760017112069,0.6708,123220.0,123210.0,1.16065425]
[1760017112264,0.5746531,123220.0,123210.0,1.18602]
[1760017112771,0.5519231,123220.0,123210.0,1.2671497]
[1760017112977,0.5519231,123220.0,123210.0,1.27527303]
[1760017113878,0.5519231,123220.0,123210.0,1.27511303]
[1760017114077,0.2138531,123220.0,123210.0,0.43614]
[1760017114371,0.11,123220.0,123210.0,0.5172697]
[1760017114577,0.11,123220.0,123210.0,1.92117425]
[1760017114774,0.4419166,123230.0,123210.0,0.01396]
[1760017115071,0.0945029,123190.0,123180.0,8.252e-05]
[1760017115276,0.1172395,123180.0,123170.0,0.06826852]
[1760017115473,0.1038927,123160.0,123150.0,0.21028126]
[1760017115669,0.75819725,123160.0,123150.0,0.08777121]
[1760017115872,0.4646927,123160.0,123150.0,0.83961121]
[1760017116072,0.4646927,123160.0,123150.0,0.10173121]
[1760017116273,0.38353,123160.0,123150.0,0.48777121]
[1760017116477,0.3608,123170.0,123150.0,0.58290051]
[1760017116669,0.3608,123170.0,123150.0,0.10173121]
[1760017116876,0.0811561,123170.0,123160.0,0.03614]
[1760017117177,0.44202253,123170.0,123160.0,0.78782]
[1760017117578,0.44202253,123170.0,123160.0,0.03614]
[1760017117773,0.77161708,123170.0,123160.0,0.02218]
[1760017117972,0.1038927,123160.0,123150.0,0.10173121]
[1760017118179,0.77155725,123160.0,123150.0,0.06559121]
[1760017118476,0.77155725,123160.0,123150.0,0.77374]
[1760017118678,0.1038993,123150.0,123140.0,0.21149385]
[1760017118882,0.4646993,123150.0,123140.0,0.96305385]
[1760017119177,0.4646993,123150.0,123140.0,0.97701385]